Cogmind - Beta 12 --- EXPLORER MODE // 2024.02.17 @ 17:51:50 Player: onedeadgod Result: Core destroyed Performance ------------- Evolutions (1) 500 Regions Visited (3) 600 Robots Destroyed (10) 50 Value Destroyed (337) 337 Prototype IDs (0) 0 Alien Tech Used (0) 0 Bonus (200) 200 TOTAL SCORE: 1687 Bonus ------- Pacifist 200 Cogmind --------- Core Integrity 0/400 Matter 204/300 Energy 315/315 System Corruption 0% Temperature Critical (621) Movement Treading (160) Location -9/Materials Parts ------- > --- POWER (3) -------- Ion Engine Light Ion Engine Light Deuterium Engine > --- PROPULSION (2) --- Light Treads Light Treads > --- UTILITY (2) ------ Targeting Computer Weapon Shielding > --- WEAPON (3) ------- Small Laser Particle Gun EM Pulse Cannon > --- INVENTORY (5) ---- Heat Sink Structural Scanner Datajack Mining Laser Peak State ------------ > --- POWER ------------ Ion Engine Light Ion Engine Light Deuterium Engine > --- PROPULSION ------- Light Treads Light Treads > --- UTILITY ---------- Targeting Computer Weapon Shielding > --- WEAPON ----------- Small Laser Particle Gun EM Pulse Cannon > --- INVENTORY -------- Structural Scanner Datajack Mining Laser [Rating: 15] Favorites ----------- Power Light Ion Engine Engine Light Ion Engine Propulsion Light Treads Treads Light Treads Utility Targeting Computer Processor Targeting Computer Protection Weapon Shielding Weapon Particle Gun Energy Gun Particle Gun Energy Cannon EM Pulse Cannon Special Weapon Mining Laser Build | -11 -10 -10 -9 ------- Run | Jun Mat Min Mat Slots Evolved 3 | . 1 . 2 Power 2 | . 1 . 1 Propulsion . | . . . . Utility . | . . . . Weapon 1 | . . . 1 Parts Attached 12 | 6 3 . 3 Power 3 | 1 1 . 1 Engine 3 | 1 1 . 1 Core . | . . . . Reactor . | . . . . Propulsion 2 | 2 . . . Treads 2 | 2 . . . Leg . | . . . . Wheel . | . . . . Hover . | . . . . Flight . | . . . . Utility 2 | 2 . . . Device . | . . . . Storage . | . . . . Processor 1 | 1 . . . Hackware . | . . . . Protection 1 | 1 . . . Artifact . | . . . . Weapon 5 | 1 2 . 2 Energy Gun 3 | 1 1 . 1 Energy Cannon 1 | . . . 1 Ballistic Gun . | . . . . Ballistic Cannon . | . . . . Launcher . | . . . . Special Weapon 1 | . 1 . . Impact Weapon . | . . . . Slashing Weapon . | . . . . Piercing Weapon . | . . . . Special Melee Weapon . | . . . . Unidentified Prototypes . | . . . . Parts Lost . | . . . . Power . | . . . . Propulsion . | . . . . Utility . | . . . . Weapon . | . . . . Highest Loss Streak . | . . . . To Critical Strikes . | . . . . Average Slot Usage (%) 94 | . 96 100 88 Engine 24 | . 23 25 24 Treads 22 | . 25 25 20 Processor 11 | . 12 12 10 Protection 11 | . 12 12 10 Energy Gun 14 | . 17 12 14 Energy Cannon 1 | . . . 3 Special Weapon 7 | . 6 12 6 Naked Turns . | . . . . Heaviest Build 24 | 5 13 13 24 Greatest Support 40 | 40 40 40 40 Greatest Overweight (x) . | . . . . Average Overweight (x) . | . . . . Largest Inventory Capacity 5 | 5 5 5 5 Average Capacity 5 | 5 5 5 5 Most Carried 4 | 4 2 3 4 Average Carried 2 | 1 1 2 3 Final Capacity 5 | 5 5 5 5 Final Carried 4 | 1 2 3 4 Class Distribution -------------------- 83% | Hacker-Mutant 16% | Hacker-Gunner Dominant Class ---------------- Hacker-Mutant | -10/Materials Hacker-Mutant | -10/Mines Hacker-Mutant | -9/Materials Resources | -11 -10 -10 -9 ----------- Run | Jun Mat Min Mat Matter Collected 316 | 225 35 26 30 Remotely . | . . . . Salvage Created 374 | . . . 374 Parts 19 | . . . 19 Haulers Intercepted . | . . . . Recyclers Shooed . | . . . . Parts Field Recycled . | . . . . Retrieved Matter . | . . . . Parts Self-Destructed . | . . . . Prevented . | . . . . Kills | -11 -10 -10 -9 ------- Run | Jun Mat Min Mat Combat Hostiles Destroyed 9 | . . . 9 Guns 5 | . . . 5 Cannons 3 | . . . 3 AOE 1 | . . . 1 Classes Destroyed 3 | . . . 3 Watcher 1 | . . . 1 Grunt 8 | . . . 8 Brawler 1 | . . . 1 Best Kill Streak 4 | . . . 4 Combat Bots Only 4 | . . . 4 Max Kills in Single Turn 1 | . . . 1 Gunslinging . | . . . . Exploded 1 | . . . 1 Melee . | . . . . Uniques/NPCs Destroyed . | . . . . Combat | -11 -10 -10 -9 -------- Run | Jun Mat Min Mat Damage Taken 578 | . . . 578 Core 421 | . . . 421 Absorbed by Shields . | . . . . Redirected to Shielding 6 | . . . 6 Core Remaining (%) 100 | 100 . 100 . Volleys Fired 37 | . . . 37 Largest 3 | . . . 3 Hottest 168 | . . . 168 Shots Fired 57 | . . . 57 Gun 46 | . . . 46 Cannon 11 | . . . 11 Launcher . | . . . . Special . | . . . . Kinetic . | . . . . Thermal 46 | . . . 46 Explosive . | . . . . Electromagnetic 11 | . . . 11 Robot Hit Streak 11 | . . . 11 Robot Miss Streak 4 | . . . 4 Penetration Max . | . . . . Secondary Targets . | . . . . Shots Hit Robots 35 | . . . 35 Core Hits 11 | . . . 11 Critical Kills . | . . . . Critical Parts Destroyed . | . . . . Critical Strikes 1 | . . . 1 Burn 1 | . . . 1 Melee Attacks . | . . . . Impact . | . . . . Slashing . | . . . . Piercing . | . . . . Sneak Attacks . | . . . . Combat Hostiles . | . . . . Follow-up Attacks . | . . . . Damage Inflicted 742 | . . 2 740 Guns 433 | . . . 433 Cannons 190 | . . . 190 Explosions 117 | . . . 117 Melee . | . . . . Ramming 2 | . . 2 . Kinetic . | . . . . Thermal 550 | . . . 550 Explosive . | . . . . Electromagnetic 190 | . . . 190 Impact . | . . . . Slashing . | . . . . Piercing . | . . . . Highest Corruption . | . . . . Average Corruption . | . . . . Corruption Purged . | . . . . Corruption Blocked . | . . . . Overload Shots . | . . . . Overflow Damage 20 | . . . 20 Projectiles . | . . . . Explosions 20 | . . . 20 Melee . | . . . . Knockbacks . | . . . . Impact . | . . . . Kinetic . | . . . . Secondary . | . . . . Self-Inflicted Damage . | . . . . Shots . | . . . . Rammed 1 | . . 1 . Targets Rammed 1 | . . 1 . Kicked . | . . . . Crushed . | . . . . Highest Temperature 776 | . . . 776 Average Temperature 264 | . . . 264 Received Heat Transfer 153 | . . . 153 Effects 45 | . . . 45 Shutdowns 14 | . . . 14 Interference 6 | . . . 6 Matter Decay 2 | . . . 2 Short Circuit 2 | . . . 2 Damage (minor) 1 | . . . 1 Damage (major) 14 | . . . 14 Damage (core) 6 | . . . 6 Siege Activations . | . . . . Robots Corrupted . | . . . . Combat Hostiles . | . . . . Parts Fried . | . . . . Impact Corruptions . | . . . . Robots Melted . | . . . . Combat Hostiles . | . . . . Parts Melted 3 | . . . 3 Heat Transferred 1236 | . . . 1236 Parts Sabotaged . | . . . . Parts Stolen . | . . . . Parts Stripped . | . . . . Power Chain Reactions 2 | . . . 2 Missiles Intercepted . | . . . . Alert | -11 -10 -10 -9 ------- Run | Jun Mat Min Mat Peak Influence 272 | . . . 272 Initial . | . . . . Average 28 | . . . 81 Maximum Alert Level 1 | . . . 1 Low Security (%) 96 | 100 100 100 89 Level 1 3 | . . . 10 Level 2 . | . . . . Level 3 . | . . . . Level 4 . | . . . . Level 5 . | . . . . High Security . | . . . . Max Security . | . . . . Squads Dispatched 2 | . . . 2 Investigation . | . . . . Extermination . | . . . . Reinforcement 2 | . . . 2 Assault . | . . . . Garrison . | . . . . Intercept . | . . . . Searches Triggered . | . . . . Construction Impeded . | . . . . Haulers Reinforced . | . . . . Active Scanning Responses . | . . . . Cargo Convoy Interrupts . | . . . . Stealth | -11 -10 -10 -9 --------- Run | Jun Mat Min Mat Distress Signals . | . . . . Communications Jammed . | . . . . Distress Signals . | . . . . Times Spotted 15 | . 1 . 14 Peak Tracking Total 4 | . 1 . 4 Tactical Retreats . | . . . . Traps | -11 -10 -10 -9 ------- Run | Jun Mat Min Mat Traps Triggered . | . . . . Indirectly . | . . . . Trap Hack Attempts . | . . . . Triggered . | . . . . Disarmed . | . . . . Reprogrammed . | . . . . Reused . | . . . . Traps Extracted . | . . . . Installed . | . . . . Triggered . | . . . . Machines | -11 -10 -10 -9 ---------- Run | Jun Mat Min Mat Machines Disabled . | . . . . Max in Single Turn . | . . . . Machines Repaired . | . . . . Machines Sabotaged . | . . . . Overloaded Fab Kills . | . . . . Hacking | -11 -10 -10 -9 --------- Run | Jun Mat Min Mat Machines Accessed 2 | . 2 . . Terminals . | . . . . Fabricators . | . . . . Repair Stations . | . . . . Recycling Units 2 | . 2 . . Scanalyzers . | . . . . Garrison Access . | . . . . Total Hacks 5 | . 5 . . Successful 4 | . 4 . . Failed 1 | . 1 . . Catastrophic . | . . . . Database Lockouts . | . . . . Manual . | . . . . Terminals . | . . . . Fabricators . | . . . . Repair Stations . | . . . . Recycling Units 5 | . 5 . . Scanalyzers . | . . . . Garrison Access . | . . . . Terminal Hacks . | . . . . Fabricator Hacks . | . . . . Repair Station Hacks . | . . . . Recycling Unit Hacks 4 | . 4 . . Recycle Component 2 | . 2 . . Retrieve Components 2 | . 2 . . Scanalyzer . | . . . . Garrison Access Hacks . | . . . . Unauthorized Hacks . | . . . . Terminals . | . . . . Fabricators . | . . . . Repair Stations . | . . . . Recycling Units . | . . . . Scanalyzers . | . . . . Garrison Access . | . . . . Data Cores Recovered . | . . . . Used . | . . . . Hacking Detections . | . . . . Full Trace Events . | . . . . Feedback Events . | . . . . Feedback Blocked . | . . . . Robot Schematics Acquired . | . . . . Robots Built . | . . . . Authchips . | . . . . Time . | . . . . Total Robot Build Rating . | . . . . Part Schematics Acquired . | . . . . Parts Built . | . . . . Authchips . | . . . . Time . | . . . . Total Part Build Rating . | . . . . Parts Repaired . | . . . . Time . | . . . . Parts Recycled 2 | . 2 . . Recycled Matter . | . . . . Retrieved Matter . | . . . . Retrieved Components 5 | . 5 . . Parts Scanalyzed . | . . . . Part Schematics Acquired . | . . . . Parts Damaged . | . . . . Bothacking | -11 -10 -10 -9 ------------ Run | Jun Mat Min Mat Used RIF Installer . | . . . . Robots Hacked . | . . . . Non-combat . | . . . . Combat . | . . . . Robot Hacks Applied . | . . . . Relay Couplers Released . | . . . . Fabnet Peak Effective % . | . . . . Robots Rewired . | . . . . Allies Hacked . | . . . . Hacks Repelled . | . . . . Allies | -11 -10 -10 -9 -------- Run | Jun Mat Min Mat Total Allies . | . . . . Largest Group . | . . . . Highest-Rated Group . | . . . . Highest-Rated Ally . | . . . . Total Orders . | . . . . Ally Attacks . | . . . . Total Damage . | . . . . Kills . | . . . . Allies Corrupted . | . . . . Allies Melted . | . . . . Intel | -11 -10 -10 -9 ------- Run | Jun Mat Min Mat Robot Analysis Total . | . . . . Derelict Logs Recovered . | . . . . Drone Launches . | . . . . Drone Recoveries . | . . . . Exploration | -11 -10 -10 -9 ------------- Run | Jun Mat Min Mat Turns Passed 780 | 121 203 181 275 Spaces Moved 427 | 79 122 112 114 Core 16 | 16 . . . Treads 411 | 63 122 112 114 Legs . | . . . . Wheels . | . . . . Hover . | . . . . Flight . | . . . . Fastest Speed 50 | 50 160 160 160 Average Speed 155 | 137 160 160 160 Slowest Speed 160 | 160 160 160 160 Overloaded Moves . | . . . . Propulsion Burnouts . | . . . . Robots Hopped . | . . . . Cave-ins Triggered . | . . . . Exploration Rate (%) 16 | 4 23 25 12 Regions Visited 3 Branch Regions 1 Pre-discovered Areas . | . . . . Known Exits Taken 3 | 1 1 1 . Unknown Exits Taken . | . . . . Scrap Searched 1 | . . 1 . Spaces Dug . | . . . . Terrain Destroyed 9 | . . . 9 Melee . | . . . . Projectile . | . . . . AOE 9 | . . . 9 Terrain Rammed . | . . . . Walls Destroyed . | . . . . Machines Disabled . | . . . . Actions | -11 -10 -10 -9 --------- Run | Jun Mat Min Mat Total 491 | 91 129 113 158 Wait . | . . . . Move 424 | 78 121 111 114 Hop . | . . . . Pick Up 16 | 7 5 1 3 Fast Attach . | . . . . Attach 11 | 6 2 . 3 Detach 1 | . . . 1 Swap 1 | . 1 . . Drop . | . . . . Fire 37 | . . . 37 Melee . | . . . . Ram . | . . . . Kick . | . . . . Crush 1 | . . 1 . Escape Stasis . | . . . . Rewire . | . . . . Trap . | . . . . Miscellaneous . | . . . . Route ------- -11/Junkyard -10/Materials -10/Mines -9/Materials History --------- Turn | Location | Event 4 | -11/Junkyard | Identified exit to Materials 4 | -11/Junkyard | Discovered exit to Materials (range 15) 122 | -11/Junkyard | Entered Materials 122 | -10/Materials | Evolved 1 slot: Power x1 258 | -10/Materials | Identified exit to Mines 258 | -10/Materials | Discovered exit to Mines (range 14) 306 | -10/Materials | Build established: Hacker-Mutant 325 | -10/Materials | Entered Mines 493 | -10/Mines | Identified exit to Materials 493 | -10/Mines | Discovered exit to Materials (range 8) 506 | -10/Mines | Entered Materials 506 | -9/Materials | Evolved 2 slots: Power x1, Weapon x1 768 | -9/Materials | Core integrity fell below 50% 781 | -9/Materials | Core integrity fell below 20% 782 | -9/Materials | Core destroyed Last Messages --------------- 00775_ K-01 Serf collects debris. 00775_ U-05 Engineer lays Concrete. 00775_ R-06 Scavenger collects Lgt. Treads. 00776_ Overheating: Core damaged (-60). 00776_ U-05 Engineer lays Concrete. 00777_ Overheating: Weapon Shielding damaged (-6). 00777_ Overheating: Particle Gun damaged (-7). 00778_ U-05 Engineer lays Concrete. 00778_ R-06 Scavenger collects Aluminum Leg. 00779_ Overheating: Broken EM Pulse Cannon damaged (-18). 00779_ K-01 Serf collects debris. 00779_ U-05 Engineer lays Concrete. 00780_ Power failure, Lgt. Ion Engine shutdown. 00780_ Power failure, Lgt. Deuterium Engine shutdown. 00780_ Overheating: Matter decay (-60). 00780_ K-01 Serf collects debris. 00780_ U-05 Engineer lays Concrete. 00781_ Overheating: Core damaged (-80). 00781_ U-05 Engineer lays Concrete. 00782_ Overheating: Core damaged (-80). Map ----- +----------------------------------------------------+ | ????????????????????# #??????# #????? | | ????????????????????### ######## #????? | | ???????????????######## #""""## #????? | | ??????????????## ^ #????? | | ???????????? + ^^ T #????? | | ???????????? ## ^ = #????? | | ???????????????### #### %*"#"#"###+##????? | | ?????????????????#+##?## %##### ????????? | | ?????????????????? ?# % #????? ??????? | | ?????????????????? """?# #?????? ?????? | | ????????????????# """ # #??????? """???? | | ????????????????# """ # #??????? """???? | | ????????????????#[ + k #???????? ""????? | | ????????????????# """ # #????????? ????? | | ????????????????# """ # #?????????? ????? | | ?????????????????? """?#% [#??????????##???? | | ?????????????????? ?#! %#???????????????? | | ?????????????????? ""??# *#???????????????? | | ?????????????????? "???# #???????????????? | | ???????????????????????# #???????????????? | | ???????????????????????# #?######????????? | | ???????????????????????# #?""" #????????? | | ???????????????######### # "T" #????????? | | ???????????????? ! t # # #????????? | | ???????????????????? /o + [ #????????? | | ???????????????????? # @ # #????????? | | ???????????????????###?# # +????????? | | ???????????????????????# #?#####?????????? | | ???????????????????? #??????????????? | | ???????????????? #??????????????? | | ???????????? #??????????????? | | ??????????? !!! =/%=#??????????????? | | ???????????? !! u %*%#??????????????? | | ???????????? !! r!%!#??????????????? | | ???????????? k;#??????????????? | | ????????????? ! ##??????????????? | | ????????????? #???????????????? | | ?????????????? """"""" g#???????????????? | | ?????????????? """"""" #???????????????? | | ???????????????? ??????"" =#???????????????? | | ?????????????????????????a #???????????????? | | ????????????????????????? ????????????????? | | ????????????????????????? ????????????????? | | ???????????????????????????????????????????? | | ???????????????????????????????????????????? | | ???????????????????????????????????????????? | | ???????????????????????????????????????????? | | ???????????????????????????????????????????? | | ???????????????????????????????????????????? | | ???????????????????????????????????????????? | +----------------------------------------------------+ Best States ------------- Heat Dissipation 28 Energy Generation 24 Energy Capacity 315 Matter Stores 300 Matter Capacity 300 Sight Range 16 Terrain Scan Density 10 Resistance: KI 35 Resistance: TH 35 Resistance: EX 35 Resistance: EM 35 Resistance: I 35 Resistance: S 35 Resistance: P 35 Weapon Shielding 33 Evasion (%) 50 Targeting Accuracy 5 Recoil Reduction 2 Offensive Hacking 20 Item Schematics ----------------- None Robot Schematics ------------------ None Fabricated ------------ Nothing Alien Tech Used ----------------- None Achievements -------------- None Challenges ------------ None Game ------ Seed HybridIntegratedMatter Manual? 0 Play Time 00:15:43 Cumulative 3.5 hours Start 2024.02.17 @ 17:14:58 End 2024.02.17 @ 17:51:50 Sessions 1 Manual Loads 0 Difficulty Explorer Special Mode None Game No. 15 Rogue 8 Adventurer 2 Explorer 5 Win Type - Total 0 Types 0/0/0/0/0/0/0/0/0 Lore% 3 Gallery% 7 Achievement% 8 Wizard Run 0 Options --------- ASCII 0 Keyboard 0 Movement Mouse Keybinds 0 Fullscreen 1 Font 18/SmallcapsGlow Map View 76x50 Tactical HUD 1 Map Filters NONE Filters NONE Steam 1 RUN: 30d33b8b-9300-4efc-9a11-f2730f230343